fUSD/lending_fUSD_20251103
["ID","MTS","AMOUNT","RATE_DAILY","PERIOD"]
[392978189,1762192241137,-500.0,0.0003041,2]
[392978191,1762192241146,-3529.54,0.0003041,2]
[392978193,1762192241155,-300.0,0.0003041,2]
[392978195,1762192241165,-1000.0,0.00030411,2]
[392978197,1762192241174,-2719.549,0.00030439,26]
[392978199,1762192241183,-181.751,0.00030439,26]
[392978201,1762192241192,-1000.0,0.00030684,2]
[392978203,1762192241202,-713.35,0.00030684,2]
[392978204,1762192241211,-500.0,0.00030684,10]
[392978207,1762192241220,-500.0,0.00030684,2]
[392978209,1762192241231,-3529.54,0.00030684,2]
[392978211,1762192241239,-300.0,0.00030684,2]
[392978213,1762192241249,-1000.0,0.00030685,2]
[392978214,1762192241259,-803.98548696,0.00030824,2]
[392978216,1762192241268,-208.76484368,0.00030824,2]
[392978218,1762192241277,-189.42492088,0.00030858,2]
[392978220,1762192241286,-3419.0,0.00030924,2]
[392978222,1762192241295,-607.0,0.00030924,2]
[392978224,1762192241304,-573.0,0.00030924,2]
[392978226,1762192241314,-1313.0,0.00030924,2]
[392978228,1762192241323,-1593.0,0.00030924,2]
[392978231,1762192241332,-1187.0,0.00030924,2]
[392978232,1762192241342,-819.0,0.00030924,2]
[392978234,1762192241351,-1272.0,0.00030924,2]
[392978236,1762192241360,-559.0,0.00030924,2]
[392978238,1762192241370,-1200.503,0.00030924,2]
[392978240,1762192241379,-1000.0,0.00030958,2]
[392978242,1762192241388,-713.35,0.00030958,2]
[392978244,1762192241397,-361.87912259,0.00030958,10]
[392978246,1762192241406,-500.0,0.00030958,2]
[392978248,1762192241415,-3529.54,0.00030958,2]
[392978250,1762192241424,-300.0,0.00030958,2]
[392978251,1762192241433,-1000.0,0.00030959,2]
[392978252,1762192241442,-600.0,0.00031,2]
[392978253,1762192241451,-300.0,0.00031069,7]
[392978254,1762192241461,-150.0,0.00031069,7]
[392978255,1762192241470,-300.0,0.00031206,7]
[392978256,1762192241481,-1195.50455797,0.00031231,15]
[392978258,1762192241491,-1000.0,0.00031232,2]
[392978260,1762192241500,-713.35,0.00031232,2]
[392978262,1762192241509,-500.0,0.00031232,2]
[392978264,1762192241519,-3529.54,0.00031232,2]
[392978266,1762192241528,-300.0,0.00031232,2]
[392978268,1762192241537,-1000.0,0.00031233,2]
[392978270,1762192241547,-209.39882768,0.00031248,120]
[392978272,1762192241556,-500.0,0.0003145,7]
[392978274,1762192241565,-252.93,0.000315,30]
[392978276,1762192241574,-455.29,0.000315,7]
[392978277,1762192241583,-4428.88,0.000315,7]
[392978278,1762192241592,-1611.2,0.000315,2]
[392978279,1762192241601,-1000.0,0.00031506,2]
[392978280,1762192241610,-713.35,0.00031506,2]
[392978281,1762192241619,-500.0,0.00031506,2]
[392978282,1762192241630,-3529.54,0.00031506,2]
[392978283,1762192241641,-300.0,0.00031506,2]
[392978284,1762192241650,-1000.0,0.00031507,2]
[392978285,1762192241660,-1000.0,0.0003178,2]
[392978286,1762192241669,-713.35,0.0003178,2]
[392978287,1762192241678,-500.0,0.0003178,2]
[392978288,1762192241688,-3529.54,0.0003178,2]
[392978289,1762192241697,-300.0,0.0003178,2]
[392978290,1762192241707,-1000.0,0.00031781,2]
[392978291,1762192241716,-1287.13075034,0.00031784,2]
[392978292,1762192241726,-1000.0,0.00032054,2]
[392978293,1762192241735,-713.35,0.00032054,2]
[392978294,1762192241744,-500.0,0.00032054,2]
[392978295,1762192241753,-3529.54,0.00032054,2]
[392978296,1762192241763,-300.0,0.00032054,2]
[392978297,1762192241773,-1000.0,0.00032055,2]
[392978298,1762192241782,-3788.93021704,0.00032253,2]
[392978299,1762192241791,-1000.0,0.00032328,2]
[392978300,1762192241801,-713.35,0.00032328,2]
[392978301,1762192241810,-500.0,0.00032328,2]
[392978302,1762192241820,-3529.54,0.00032328,2]
[392978303,1762192241830,-300.0,0.00032328,2]
[392978304,1762192241841,-1000.0,0.00032329,2]
[392978305,1762192241851,-159.83907504,0.00032359,15]
[392978306,1762192241861,-174.10839772,0.00032359,2]
[392978307,1762192241871,-1000.0,0.00032602,2]
[392978308,1762192241881,-713.35,0.00032602,2]
[392978309,1762192241890,-613.05197648,0.00032602,2]
[392978310,1762192241899,-3529.54,0.00032602,2]
[392978311,1762192241908,-300.0,0.00032602,2]
[392978312,1762192241918,-1000.0,0.00032603,2]
[392978313,1762192241927,-3752.0,0.00032812,5]
[392978314,1762192241936,-1000.0,0.00032876,2]
[392978315,1762192241946,-713.35,0.00032876,2]
[392978316,1762192241955,-3529.54,0.00032876,2]
[392978317,1762192241965,-300.0,0.00032876,2]
[392978318,1762192241979,-151.0,0.00032876,31]
[392978319,1762192241989,-151.0,0.00032876,31]
[392978320,1762192241998,-192.356972,0.00032876,31]
[392978321,1762192242007,-151.0,0.00032876,31]
[392978322,1762192242017,-524.750449,0.00032876,31]
[392978323,1762192242027,-151.0,0.00032876,31]
[392978324,1762192242036,-151.0,0.00032876,31]
[392978325,1762192242045,-524.750449,0.00032876,31]
[392978326,1762192242055,-151.0,0.00032876,31]
[392978327,1762192242063,-524.750449,0.00032876,31]
[392978328,1762192242072,-151.0,0.00032876,31]
[392978329,1762192242081,-151.0,0.00032876,31]
[392978330,1762192242090,-524.750449,0.00032876,31]
[392978331,1762192242100,-151.0,0.00032876,31]
[392978332,1762192242110,-151.0,0.00032876,31]
[392978333,1762192242120,-219.175191,0.00032876,31]
[392978334,1762192242129,-151.0,0.00032876,31]
[392978335,1762192242138,-157.204459,0.00032876,31]
[392978336,1762192242147,-648.462301,0.00032876,30]
[392978337,1762192242158,-648.462301,0.00032876,30]
[392978338,1762192242167,-151.0,0.00032876,31]
[392978339,1762192242176,-648.462301,0.00032876,30]
[392978340,1762192242186,-151.0,0.00032876,31]
[392978341,1762192242195,-648.462301,0.00032876,30]
[392978342,1762192242204,-151.0,0.00032876,31]
[392978343,1762192242214,-151.0,0.00032876,31]
[392978344,1762192242223,-151.0,0.00032876,31]
[392978345,1762192242232,-151.0,0.00032876,31]
[392978346,1762192242241,-151.0,0.00032876,31]
[392978347,1762192242250,-151.0,0.00032876,31]
[392978348,1762192242260,-151.0,0.00032876,31]
[392978349,1762192242269,-159.129974,0.00032876,31]
[392978350,1762192242279,-159.129974,0.00032876,31]
[392978351,1762192242289,-159.129974,0.00032876,31]
[392978352,1762192242298,-159.129974,0.00032876,31]
[392978353,1762192242308,-339.82,0.00032877,2]
[392978354,1762192242321,-176.78201766,0.00032877,2]
[392978355,1762192242330,-1000.0,0.00032877,2]
[392978356,1762192242340,-500.0,0.00032877,60]
[392978357,1762192242350,-500.0,0.00032877,2]
[392978358,1762192242362,-650.0,0.00033,2]
[392978359,1762192242371,-528.744728,0.00033,8]
[392978360,1762192242380,-500.0,0.00033014,60]
[392978361,1762192242389,-500.0,0.00033014,2]
[392978362,1762192242399,-1056.84362586,0.0003315,2]
[392978363,1762192242408,-713.35,0.0003315,2]
[392978364,1762192242417,-3529.54,0.0003315,2]
[392978365,1762192242427,-300.0,0.0003315,2]
[392978366,1762192242436,-151.0,0.0003315,31]
[392978367,1762192242446,-151.0,0.0003315,31]
[392978368,1762192242455,-151.0,0.0003315,31]
[392978369,1762192242464,-151.0,0.0003315,31]
[392978370,1762192242474,-424.508622,0.0003315,31]
[392978371,1762192242483,-424.508622,0.0003315,31]
[392978372,1762192242492,-151.0,0.0003315,15]
[392978373,1762192242502,-424.508622,0.0003315,31]
[392978374,1762192242512,-151.0,0.0003315,15]
[392978375,1762192242521,-424.508622,0.0003315,31]
[392978376,1762192242530,-151.0,0.0003315,31]
[392978378,1762192242540,-163.632111,0.0003315,31]
[392978379,1762192242550,-151.0,0.0003315,31]
[392978380,1762192242559,-151.0,0.0003315,31]
[392978381,1762192242569,-1000.0,0.00033151,2]
[392978382,1762192242577,-500.0,0.00033151,60]
[392978383,1762192242586,-424.76496096,0.00033151,2]
[392978384,1762192242595,-1000.0,0.00033165,2]
[392978385,1762192242605,-1611.2,0.000332,2]
[392978386,1762192242614,-262.0,0.0003323,2]
[392978387,1762192242623,-500.0,0.00033288,60]
[392978388,1762192242632,-713.35,0.00033424,2]
[392978389,1762192242641,-3529.54,0.00033424,2]
[392978390,1762192242650,-300.0,0.00033424,2]
[392978391,1762192242660,-1000.0,0.00033425,2]
[392978392,1762192242671,-500.0,0.00033425,60]
[392978393,1762192242681,-1000.0,0.00033442,30]
[392978394,1762192242690,-1000.0,0.00033442,30]
[392978395,1762192242699,-500.0,0.00033562,60]
[392978396,1762192242708,-469.92835077,0.00033644,2]
[392978397,1762192242717,-500.0,0.00033688,120]
[392978398,1762192242728,-713.35,0.00033698,2]
[392978399,1762192242737,-3529.54,0.00033698,2]
[392978400,1762192242746,-300.0,0.00033698,2]
[392978401,1762192242755,-1000.0,0.00033699,2]
[392978402,1762192242764,-553.3291033,0.00033699,60]
[392978403,1762192242774,-455.29,0.000337,14]
[392978404,1762192242783,-1287.13075034,0.00033705,2]
[392978405,1762192242792,-244.41,0.00033887,2]
[392978406,1762192242802,-167.0,0.00033924,2]
[392978407,1762192242812,-803.98548696,0.00033927,2]
[392978408,1762192242821,-208.76484366,0.00033927,2]
[392978409,1762192242830,-713.35,0.00033972,2]
[392978410,1762192242840,-3529.54,0.00033972,2]
[392978411,1762192242849,-300.0,0.00033972,2]
[392978412,1762192242859,-500.0,0.00033973,5]
[392978413,1762192242869,-1000.0,0.00033973,2]
[392978414,1762192242880,-1861.49,0.00034,2]
[392978415,1762192242890,-2000.0,0.00034,2]
[392978416,1762192242900,-2000.0,0.00034,2]
[392978417,1762192242910,-2000.0,0.00034,2]
[392978418,1762192242920,-2000.0,0.00034,2]
[392978419,1762192242930,-2000.0,0.00034,2]
[392978420,1762192242940,-2000.0,0.00034,2]
[392978421,1762192242949,-2000.0,0.00034,2]
[392978422,1762192242959,-2003.94,0.00034,2]
[392978423,1762192242970,-150.93,0.00034225,60]
[392978424,1762192242987,-3788.93021704,0.00034239,2]
[392978425,1762192243004,-713.35,0.00034246,2]
[392978426,1762192243023,-3529.54,0.00034246,2]
[392978427,1762192243032,-233.69472268,0.00034246,2]
[392978428,1762192243041,-1000.0,0.00034247,2]
[392978429,1762192243051,-500.0,0.00034247,5]
[392978430,1762192243063,-151.0,0.00034247,31]
[392978431,1762192243072,-151.0,0.00034247,31]
[392978432,1762192243081,-151.0,0.00034247,31]
[392978433,1762192243092,-151.0,0.00034247,31]
[392978434,1762192243101,-151.0,0.00034247,31]
[392978435,1762192243111,-151.0,0.00034247,31]
[392978436,1762192243121,-151.0,0.00034247,31]
[392978437,1762192243131,-151.0,0.00034247,31]
[392978438,1762192243141,-151.0,0.00034247,31]
[392978439,1762192243151,-151.0,0.00034247,31]
[392978440,1762192243161,-151.0,0.00034247,31]
[392978441,1762192243170,-151.0,0.00034247,31]
[392978442,1762192243181,-151.0,0.00034247,31]
[392978443,1762192243192,-151.0,0.00034247,7]
[392978444,1762192243202,-151.0,0.00034247,31]
[392978445,1762192243211,-151.0,0.00034247,31]
[392978446,1762192243222,-151.0,0.00034247,31]
[392978447,1762192243236,-259.824304,0.00034247,31]
[392978448,1762192243246,-151.0,0.00034247,31]
[392978449,1762192243256,-151.0,0.00034247,31]
[392978450,1762192243266,-168.0,0.00034302,2]
[392978451,1762192243276,-150.93,0.00034325,60]
[392978452,1762192243287,-150.93,0.00034425,60]
[392978453,1762192243297,-713.35,0.0003452,2]
[392978454,1762192243307,-3529.54,0.0003452,2]
[392978455,1762192243317,-1000.0,0.00034521,2]
[392978456,1762192243327,-150.93,0.00034525,60]
[392978457,1762192243336,-800.0,0.00034549,13]
[392978458,1762192243345,-800.0,0.00034549,13]
[392978459,1762192243354,-800.0,0.00034549,13]
[392978460,1762192243364,-800.0,0.00034549,13]
[392978461,1762192243373,-800.0,0.00034549,13]
[392978462,1762192243382,-800.0,0.00034549,13]
[392978463,1762192243391,-800.0,0.00034549,13]
[392978464,1762192243400,-594.0,0.00034549,13]
[392978465,1762192243409,-200.0,0.00034549,2]
[392978466,1762192243418,-200.0,0.00034549,2]
[392978467,1762192243427,-200.0,0.00034549,2]
[392978468,1762192243437,-200.0,0.00034549,2]
[392978469,1762192243446,-200.0,0.00034549,2]
[392978470,1762192243455,-200.0,0.00034549,2]
[392978471,1762192243464,-200.0,0.00034549,2]
[392978472,1762192243473,-200.0,0.00034549,2]
[392978473,1762192243484,-200.0,0.00034549,2]
[392978474,1762192243495,-200.0,0.00034549,2]
[392978475,1762192243504,-200.0,0.00034549,2]
[392978476,1762192243514,-200.0,0.00034549,2]
[392978477,1762192243523,-200.0,0.00034549,2]
[392978478,1762192243532,-200.0,0.00034549,2]
[392978479,1762192243541,-200.0,0.00034549,2]
[392978480,1762192243550,-200.0,0.00034549,2]
[392978481,1762192243559,-200.0,0.00034549,2]
[392978482,1762192243568,-200.0,0.00034549,2]
[392978483,1762192243578,-200.0,0.00034549,2]
[392978484,1762192243587,-200.0,0.00034549,2]
[392978485,1762192243596,-200.0,0.00034549,2]
[392978486,1762192243606,-200.0,0.00034549,2]
[392978487,1762192243615,-200.0,0.00034549,2]
[392978488,1762192243625,-200.0,0.00034549,2]
[392978489,1762192243635,-200.0,0.00034549,2]
[392978490,1762192243644,-200.0,0.00034549,2]
[392978491,1762192243653,-200.0,0.00034549,2]
[392978492,1762192243663,-200.0,0.00034549,2]
[392978493,1762192243672,-200.0,0.00034549,2]
[392978494,1762192243682,-200.0,0.00034549,2]
[392978495,1762192243692,-200.0,0.00034549,2]
[392978496,1762192243701,-200.0,0.00034549,2]
[392978497,1762192243710,-200.0,0.00034549,2]
[392978498,1762192243719,-200.0,0.00034549,2]
[392978499,1762192243729,-200.0,0.00034549,2]
[392978500,1762192243739,-289.0,0.00034549,2]
[392978501,1762192243748,-562.74,0.00034549,14]
[392978502,1762192243758,-150.93,0.00034625,60]
[392978503,1762192243767,-1000.0,0.00034658,5]
[392978504,1762192243776,-150.93,0.00034725,60]
[392978505,1762192243787,-1209.0,0.00034731,20]
[392978506,1762192243941,-713.35,0.00034794,2]
[392978507,1762192243952,-3529.54,0.00034794,2]
[392978508,1762192243962,-1000.0,0.00034795,2]
[392978509,1762192243974,-562.74,0.00034823,14]
[392978510,1762192243986,-150.93,0.00034825,60]
[392978511,1762192243996,-151.0,0.00034849,31]
[392978512,1762192244005,-151.0,0.00034849,31]
[392978513,1762192244015,-151.0,0.00034849,31]
[392978514,1762192244026,-151.0,0.00034849,31]
[392978515,1762192244035,-151.0,0.00034849,31]
[392978516,1762192244045,-151.0,0.00034849,31]
[392978517,1762192244056,-151.0,0.00034849,31]
[392978518,1762192244065,-151.0,0.00034849,31]
[392978519,1762192244075,-151.0,0.00034849,31]
[392978520,1762192244084,-151.0,0.00034849,30]
[392978521,1762192244093,-151.0,0.00034849,31]
[392978522,1762192244103,-151.0,0.00034849,31]
[392978523,1762192244112,-153.237069,0.00034849,31]
[392978524,1762192244122,-151.0,0.00034849,31]
[392978525,1762192244131,-174.073123,0.00034849,31]
[392978526,1762192244141,-151.0,0.00034849,31]
[392978527,1762192244150,-174.073123,0.00034849,31]
[392978528,1762192244159,-174.073123,0.00034849,31]
[392978529,1762192244169,-151.0,0.00034849,31]
[392978530,1762192244178,-174.073123,0.00034849,31]
[392978531,1762192244187,-151.0,0.00034849,31]
[392978532,1762192244197,-541.03018028,0.00034849,120]
[392978533,1762192244207,-1024.86,0.00034867,30]
[392978534,1762192244216,-150.93,0.00034925,60]
[392978535,1762192244226,-700.0,0.00035,2]
[392978536,1762192244239,-150.93,0.00035025,60]
[392978537,1762192244249,-168.0,0.00035041,2]
[392978538,1762192244259,-168.0,0.00035064,2]
[392978539,1762192244268,-500.0,0.00035067,7]
[392978540,1762192244277,-713.35,0.00035068,2]
[392978541,1762192244287,-3529.54,0.00035068,2]
[392978542,1762192244296,-1000.0,0.00035068,2]
[392978543,1762192244306,-466.47919615,0.00035068,5]
[392978544,1762192244316,-1209.0,0.00035089,20]
[392978545,1762192244325,-562.74,0.00035097,14]
[392978546,1762192244335,-150.93,0.00035125,60]
[392978547,1762192244344,-168.0,0.00035181,2]
[392978548,1762192244354,-150.93,0.00035225,60]
[392978549,1762192244363,-150.93,0.00035325,60]
[392978550,1762192244373,-713.35,0.00035342,2]
[392978551,1762192244382,-3529.54,0.00035342,2]
[392978552,1762192244392,-1000.0,0.00035342,2]
[392978553,1762192244401,-562.74,0.00035371,14]
[392978554,1762192244410,-168.0,0.00035393,2]
[392978555,1762192244420,-150.93,0.00035425,60]
[392978556,1762192244430,-1209.0,0.00035447,20]
[392978557,1762192244440,-151.0,0.00035447,31]
[392978558,1762192244449,-151.0,0.00035447,31]
[392978559,1762192244458,-151.0,0.00035447,31]
[392978560,1762192244467,-151.0,0.00035447,31]
[392978561,1762192244477,-151.0,0.00035447,31]
[392978562,1762192244486,-151.0,0.00035447,31]
[392978563,1762192244496,-151.0,0.00035447,31]
[392978564,1762192244506,-151.0,0.00035447,31]
[392978565,1762192244515,-151.0,0.00035447,31]
[392978566,1762192244524,-151.0,0.00035447,31]
[392978567,1762192244533,-151.0,0.00035447,31]
[392978568,1762192244543,-151.0,0.00035447,31]
[392978569,1762192244552,-151.0,0.00035447,31]
[392978570,1762192244561,-151.0,0.00035447,31]
[392978571,1762192244570,-151.0,0.00035447,31]
[392978572,1762192244579,-151.0,0.00035447,31]
[392978573,1762192244588,-151.0,0.00035447,31]
[392978574,1762192244598,-151.0,0.00035447,31]
[392978575,1762192244607,-153.454905,0.00035447,31]
[392978576,1762192244616,-860553.85904373,0.00035525,7]
[392978577,1762192244624,-150.93,0.00035525,60]
[392978578,1762192244634,-713.35,0.00035616,2]
[392978579,1762192244643,-3529.54,0.00035616,2]
[392978580,1762192244652,-1000.0,0.00035616,2]
[392978581,1762192244661,-1000.0,0.00035616,5]
[392978582,1762192244671,-153.68323784,0.00035625,30]
[392978583,1762192244681,-153.68323784,0.00035625,30]
[392978584,1762192244690,-153.68323784,0.00035625,30]
[392978585,1762192244699,-153.68323784,0.00035625,30]
[392978586,1762192244708,-153.68323784,0.00035625,30]
[392978587,1762192244717,-153.68323784,0.00035625,30]
[392978588,1762192244729,-153.68323784,0.00035625,30]
[392978589,1762192244738,-153.68323784,0.00035625,30]
[392978590,1762192244748,-153.68323784,0.00035625,30]
[392978591,1762192244757,-153.68323784,0.00035625,30]
[392978592,1762192244767,-153.68323784,0.00035625,30]
[392978593,1762192244776,-153.68323784,0.00035625,30]
[392978594,1762192244785,-153.68323784,0.00035625,30]
[392978595,1762192244794,-153.68323784,0.00035625,30]
[392978596,1762192244804,-153.68323784,0.00035625,30]
[392978597,1762192244813,-153.68323784,0.00035625,30]
[392978598,1762192244823,-153.68323784,0.00035625,30]
[392978599,1762192244832,-153.68323784,0.00035625,30]
[392978600,1762192244842,-153.68,0.00035625,30]
[392978601,1762192244851,-340.66451054,0.00035625,30]
[392978602,1762192244860,-340.66451054,0.00035625,30]
[392978603,1762192244869,-340.66451054,0.00035625,30]
[392978604,1762192244879,-340.66451054,0.00035625,30]
[392978605,1762192244888,-340.66451054,0.00035625,30]
[392978606,1762192244897,-340.66451054,0.00035625,30]
[392978607,1762192244907,-340.66451054,0.00035625,30]
[392978608,1762192244917,-340.66451054,0.00035625,30]
[392978609,1762192244926,-340.66451054,0.00035625,30]
[392978610,1762192244935,-340.66451054,0.00035625,30]
[392978611,1762192244945,-340.66451054,0.00035625,30]
[392978612,1762192244954,-340.66451054,0.00035625,30]
[392978613,1762192244964,-340.66451054,0.00035625,30]
[392978614,1762192244978,-340.66451054,0.00035625,30]
[392978615,1762192244988,-340.66451054,0.00035625,30]
[392978616,1762192244997,-340.66451054,0.00035625,30]
[392978617,1762192245007,-238.99551242,0.00035625,30]
[392978618,1762192245016,-238.99551242,0.00035625,30]
[392978619,1762192245026,-238.99551242,0.00035625,30]
[392978620,1762192245036,-238.99551242,0.00035625,30]
[392978621,1762192245045,-238.99551242,0.00035625,30]
[392978622,1762192245056,-238.99551242,0.00035625,30]
[392978623,1762192245065,-238.99551242,0.00035625,30]
[392978624,1762192245075,-238.99551242,0.00035625,30]
[392978625,1762192245084,-238.99551242,0.00035625,30]
[392978626,1762192245093,-238.99551242,0.00035625,30]
[392978627,1762192245103,-238.99551242,0.00035625,30]
[392978628,1762192245112,-238.99551242,0.00035625,30]
[392978629,1762192245120,-238.99551242,0.00035625,30]
[392978630,1762192245131,-238.99551242,0.00035625,30]
[392978631,1762192245140,-238.99551242,0.00035625,30]
[392978632,1762192245149,-238.99551242,0.00035625,30]
[392978633,1762192245158,-238.99551242,0.00035625,30]
[392978634,1762192245167,-238.99551242,0.00035625,30]
[392978635,1762192245175,-238.99551242,0.00035625,30]
[392978636,1762192245184,-238.99,0.00035625,30]
[392978637,1762192245194,-557.65619565,0.00035625,30]
[392978638,1762192245204,-557.65619565,0.00035625,30]
[392978639,1762192245214,-557.65619565,0.00035625,30]
[392978640,1762192245223,-557.65619565,0.00035625,30]
[392978641,1762192245233,-557.65619565,0.00035625,30]
[392978642,1762192245242,-557.65619565,0.00035625,30]
[392978643,1762192245251,-557.65619565,0.00035625,30]
[392978644,1762192245260,-557.65619565,0.00035625,30]
[392978645,1762192245269,-557.65619565,0.00035625,30]
[392978646,1762192245278,-557.65619565,0.00035625,30]
[392978647,1762192245288,-557.65619565,0.00035625,30]
[392978648,1762192245298,-557.65619565,0.00035625,30]
[392978649,1762192245307,-557.65619565,0.00035625,30]
[392978650,1762192245316,-557.65619565,0.00035625,30]
[392978651,1762192245325,-557.65619565,0.00035625,30]
[392978652,1762192245335,-557.65619565,0.00035625,30]
[392978653,1762192245344,-1287.13075034,0.00035625,2]
[392978654,1762192245354,-150.93,0.00035625,60]
[392978655,1762192245363,-562.74,0.00035645,14]
[392978656,1762192245372,-953.3,0.00035706,2]
[392978657,1762192245381,-150.93,0.00035725,60]
[392978658,1762192245390,-500.0,0.00035781,2]
[392978659,1762192245400,-1209.0,0.00035805,20]
[392978660,1762192245409,-150.93,0.00035825,60]
[392978661,1762192245419,-713.35,0.0003589,2]
[392978662,1762192245428,-3529.54,0.0003589,2]
[392978663,1762192245438,-1000.0,0.0003589,2]
[392978664,1762192245447,-2000.0,0.000359,2]
[392978665,1762192245457,-2751.0,0.00035917,120]
[392978666,1762192245466,-340.66451054,0.00035918,30]
[392978667,1762192245475,-557.65619565,0.00035918,30]
[392978668,1762192245488,-562.77464618,0.00035919,14]
[392978669,1762192245498,-150.93,0.00035925,60]
[392978670,1762192245508,-2000.0,0.00035972,2]
[392978671,1762192245517,-256.26417705,0.00036,3]
[392978672,1762192245527,-181.06144846,0.00036,2]
[392978673,1762192245536,-3463.59717064,0.00036,2]
[392978674,1762192245546,-477.5520043,0.00036,30]
[392978675,1762192245555,-150.93,0.00036025,60]
[392978676,1762192245564,-1000.0,0.000361,7]
[392978677,1762192245573,-3167.86802257,0.00036121,8]
[392978678,1762192245582,-150.93,0.00036125,60]
[392978679,1762192245596,-1209.0,0.00036163,20]
[392978680,1762192245605,-713.35,0.00036164,2]
[392978682,1762192245615,-3529.54,0.00036164,2]
[392978684,1762192245625,-1000.0,0.00036164,2]
[392978686,1762192245634,-151.97796274,0.00036165,60]
[392978687,1762192245644,-203.04390248,0.00036165,60]
[392978688,1762192245653,-150.0,0.00036165,60]
[392978689,1762192245663,-150.0,0.00036165,60]
[392978690,1762192245672,-150.0,0.00036165,60]
[392978691,1762192245682,-150.0,0.00036165,60]
[392978692,1762192245691,-150.0,0.00036165,60]
[392978693,1762192245701,-2525.314999,0.000362,22]
[392978694,1762192245710,-3788.93021704,0.00036225,2]
[392978695,1762192245719,-150.93,0.00036225,60]
[392978696,1762192245729,-681.27642147,0.00036226,20]
[392978697,1762192245739,-340.66451054,0.00036289,30]
[392978698,1762192245749,-557.65619565,0.00036289,30]
[392978699,1762192245758,-203.92497175,0.00036302,60]
[392978700,1762192245768,-150.0,0.00036302,60]
[392978701,1762192245777,-259.681106,0.00036302,60]
[392978702,1762192245786,-150.0,0.00036302,60]
[392978703,1762192245796,-150.93,0.00036325,60]
[392978704,1762192245806,-672.44815368,0.00036362,2]
[392978705,1762192245815,-150.93,0.00036425,60]
[392978706,1762192245825,-713.46831376,0.00036438,2]
[392978707,1762192245835,-3529.74267672,0.00036438,2]
[392978708,1762192245845,-1000.0,0.00036438,2]
[392978709,1762192245854,-591.9489905,0.000365,120]
[392978710,1762192245864,-181.86,0.00036511,120]
[392978711,1762192245874,-1489.78935205,0.00036516,2]
[392978712,1762192245883,-1209.0,0.00036521,20]
[392978713,1762192245893,-500.0,0.00036524,7]
[392978714,1762192245903,-500.0,0.00036524,7]
[392978715,1762192245912,-157.875105,0.00036525,31]
[392978716,1762192245922,-151.0,0.00036525,31]
[392978717,1762192245931,-151.0,0.00036525,31]
[392978718,1762192245940,-151.0,0.00036525,31]
[392978719,1762192245950,-151.0,0.00036525,31]
[392978720,1762192245959,-151.0,0.00036525,31]
[392978721,1762192245968,-151.0,0.00036525,31]
[392978722,1762192245985,-151.0,0.00036525,31]
[392978723,1762192245994,-151.0,0.00036525,31]
[392978724,1762192246003,-151.0,0.00036525,31]
[392978725,1762192246012,-151.0,0.00036525,31]
[392978726,1762192246024,-151.0,0.00036525,31]
[392978727,1762192246033,-151.0,0.00036525,31]
[392978728,1762192246042,-171.022124,0.00036525,31]
[392978729,1762192246051,-151.0,0.00036525,31]
[392978730,1762192246061,-171.022124,0.00036525,31]
[392978731,1762192246070,-171.022124,0.00036525,31]
[392978732,1762192246079,-171.022124,0.00036525,31]